bitfinex-derivatives/quotes_BNBF0:USTF0_20250908
["timestamp","ask_amount","ask_price","bid_price","bid_amount"]
[1757314854085,0.68366239,870.96,870.43,1.474]
[1757314854287,0.68366239,870.95,870.43,1.474]
[1757314854486,0.68366239,870.94,870.43,1.474]
[1757314854685,1.02800661,871.0,870.43,1.474]
[1757314854887,0.68376154,870.99,870.43,1.474]
[1757314855087,0.68376154,870.98,870.43,1.474]
[1757314855287,1.02800661,871.0,870.43,1.474]
[1757314855288,0.68376154,870.97,870.43,1.474]
[1757314855489,0.68376154,870.96,870.43,1.474]
[1757314855687,0.68376154,870.95,870.43,1.474]
[1757314855887,0.68376154,870.94,870.43,1.474]
[1757314856087,1.02800661,871.0,870.43,1.474]
[1757314856388,0.68395381,870.99,870.43,1.474]
[1757314856585,0.68395381,870.98,870.43,1.474]
[1757314856889,0.68395381,870.97,870.43,1.474]
[1757314857188,0.68395381,870.96,870.43,1.474]
[1757314857490,0.68395381,870.95,870.43,1.474]
[1757314857791,1.02800661,871.01,870.43,1.474]
[1757314857792,0.68395381,870.94,870.43,1.474]
[1757314857994,1.02800661,871.01,870.43,1.474]
[1757314858195,0.68410958,871.0,870.43,1.474]
[1757314858490,0.68410958,870.99,870.43,1.474]
[1757314858693,0.68410958,870.98,870.43,1.474]
[1757314858894,0.68410958,870.97,870.43,1.474]
[1757314859093,0.68410958,870.96,870.43,1.474]
[1757314859293,0.68410958,870.95,870.43,1.474]
[1757314859592,0.68410958,870.94,870.43,1.474]
[1757314859792,1.02800661,871.01,870.43,1.474]
[1757314859994,0.68438574,871.0,870.43,1.474]
[1757314860290,0.68438574,870.99,870.43,1.474]
[1757314860594,0.68438574,870.98,870.43,1.474]
[1757314860890,0.68438574,870.97,870.43,1.474]
[1757314861088,1.02800661,870.94,870.43,1.474]
[1757314863093,1.02800661,870.96,870.43,1.474]
[1757314863297,1.02800661,871.03,870.43,1.474]
[1757314867501,2.08155828,871.03,870.43,1.474]
[1757314868001,2.08155828,871.04,870.43,1.474]
[1757314868499,1.02800661,871.13,870.43,1.474]
[1757314868800,1.02800661,871.11,870.43,1.474]
[1757314869102,1.02800661,871.17,870.43,1.474]
[1757314869299,2.08155828,871.17,870.43,1.474]
[1757314873105,2.76769996,871.16,870.43,1.474]
[1757314873302,2.08155828,871.16,870.43,1.474]
[1757314875704,2.08155828,871.13,870.43,1.474]
[1757314881008,2.76731963,871.12,870.43,1.474]
[1757314881206,0.68577229,871.11,870.43,1.474]
[1757314881509,2.08155828,871.08,870.43,1.474]
[1757314883710,2.08155828,871.08,870.42,0.19954128]
[1757314885611,2.76635278,871.07,870.42,0.19954128]
[1757314885911,1.02800661,871.02,870.42,0.19954128]
[1757314886109,1.02800661,871.02,870.43,1.593]
[1757314888114,1.02800661,870.97,870.43,1.593]
[1757314889811,1.02800661,870.98,870.43,1.593]
[1757314890111,1.02800661,871.0,870.43,1.593]
[1757314896719,2.08155828,871.0,870.43,1.593]
[1757314897316,1.02800661,871.0,870.43,1.593]
[1757314897821,1.02800661,871.02,870.43,1.593]
[1757314907120,1.71303823,871.01,870.43,1.593]
[1757314907325,1.02800661,871.01,870.43,1.593]
[1757314907622,2.08155828,871.01,870.43,1.593]
[1757314911923,2.08155828,871.02,870.43,1.593]
[1757314917024,1.02800661,871.02,870.43,1.593]
[1757314921031,1.02800661,871.03,870.43,1.593]
[1757314921232,1.71430907,871.02,870.43,1.593]
[1757314921432,1.02800661,871.06,870.43,1.593]
[1757314941853,1.02800661,871.13,870.43,1.593]
[1757314943854,1.02800661,871.16,870.43,1.593]
[1757314944752,1.7147814,871.15,870.43,1.593]
[1757314944957,1.02800661,871.15,870.43,1.593]
[1757314946157,1.02800661,871.15,870.42,0.19954128]
[1757314949361,1.02800661,871.15,870.43,1.304]
[1757314951762,2.08155828,871.15,870.43,1.304]
[1757314958561,1.02800661,871.2,870.43,1.304]
[1757314958763,0.68628826,871.19,870.43,1.304]
[1757314959064,0.68628826,871.18,870.43,1.304]
[1757314959260,0.68628826,871.17,870.43,1.304]
[1757314959463,0.68628826,871.16,870.43,1.304]
[1757314959664,0.68628826,871.15,870.43,1.304]
[1757314959862,1.02800661,871.23,870.43,1.304]
[1757314960161,0.68627178,871.22,870.43,1.304]
[1757314960365,0.68627178,871.21,870.43,1.304]
[1757314960561,0.68627178,871.2,870.43,1.304]
[1757314960865,0.68627178,871.19,870.43,1.304]
[1757314961065,0.68627178,871.18,870.43,1.304]
[1757314961365,0.68627178,871.17,870.43,1.304]
[1757314961565,0.68627178,871.16,870.43,1.304]
[1757314961765,0.68627178,871.15,870.43,1.304]
[1757314962061,1.02800661,871.24,870.43,1.304]
[1757314962262,0.6862369,871.23,870.43,1.304]
[1757314962462,1.02800661,871.24,870.43,1.304]
[1757314962463,0.6862369,871.22,870.43,1.304]
[1757314962665,0.6862369,871.21,870.43,1.304]
[1757314962963,0.6862369,871.2,870.43,1.304]
[1757314963165,0.6862369,871.19,870.43,1.304]
[1757314963366,0.6862369,871.18,870.43,1.304]
[1757314963665,0.6862369,871.17,870.43,1.304]
[1757314963966,0.6862369,871.16,870.43,1.304]
[1757314964261,0.6862369,871.15,870.43,1.304]
[1757314964566,1.02800661,871.25,870.43,1.304]
[1757314964866,0.68622449,871.24,870.43,1.304]
[1757314965066,0.68622449,871.23,870.43,1.304]
[1757314965366,0.68622449,871.22,870.43,1.304]
[1757314965565,0.68622449,871.21,870.43,1.304]
[1757314965864,0.68622449,871.2,870.43,1.304]
[1757314966063,0.68622449,871.19,870.43,1.304]
[1757314966264,0.68622449,871.18,870.43,1.304]
[1757314966461,0.68622449,871.17,870.43,1.304]
[1757314966660,0.68622449,871.16,870.43,1.304]
[1757314966865,0.68622449,871.15,870.43,1.304]
[1757314967062,1.02800661,871.25,870.43,1.304]
[1757314967262,1.7142284,871.24,870.43,1.304]
[1757314967463,0.68622179,871.23,870.43,1.304]
[1757314967665,0.68622179,871.22,870.43,1.304]
[1757314967865,0.68622179,871.21,870.43,1.304]
[1757314968061,0.68622179,871.2,870.43,1.304]
[1757314968365,1.02800661,871.15,870.43,1.304]
[1757314971467,2.08155828,871.15,870.43,1.304]
[1757314976567,2.08155828,871.13,870.43,1.304]
[1757314979270,2.53681649,871.87,870.43,1.304]
[1757314979271,2.08155828,871.14,870.43,1.304]
[1757314979870,2.08155828,871.11,870.43,1.304]
[1757314981172,0.68686423,871.1,870.43,1.304]
[1757314981376,1.02800661,870.99,870.43,1.304]
[1757314985172,1.02800661,870.99,870.42,0.19954128]
[1757314985173,1.02800661,871.0,870.42,0.19954128]
[1757314986277,2.08155828,871.01,870.42,0.19954128]
[1757314986474,2.08155828,871.06,870.42,0.19954128]
[1757314987779,2.08155828,871.06,870.43,1.438]
[1757314989072,2.08155828,871.07,870.43,1.438]
[1757314991276,2.08155828,871.07,870.48,0.19945037]
[1757314991479,2.76819145,871.06,870.48,0.19945037]
[1757314991679,2.08155828,871.06,870.48,0.19945037]
[1757314992883,2.08155828,870.99,870.48,0.19945037]
[1757314995583,1.02800661,870.99,870.48,0.19945037]
[1757315005492,2.08155828,870.99,870.48,0.19945037]
[1757315005793,1.02800661,870.99,870.48,0.19945037]
[1757315008095,1.02800661,871.0,870.48,0.19945037]
[1757315008292,1.02800661,871.03,870.48,0.19945037]
[1757315009695,1.02800661,871.08,870.48,0.19945037]
[1757315015104,2.08155828,871.08,870.48,0.19945037]
[1757315023507,2.08155828,871.09,870.48,0.19945037]
[1757315041423,1.02800661,871.09,870.48,0.19945037]
[1757315041822,1.02800661,871.22,870.48,0.19945037]
[1757315042027,0.68629816,871.21,870.48,0.19945037]
[1757315042228,0.68629816,871.2,870.48,0.19945037]
[1757315042426,0.68629816,871.19,870.48,0.19945037]
[1757315042628,0.68629816,871.18,870.48,0.19945037]
[1757315042928,0.68629816,871.17,870.48,0.19945037]
[1757315043128,0.68629816,871.16,870.48,0.19945037]
[1757315043325,0.68629816,871.15,870.48,0.19945037]
[1757315043525,0.68629816,871.14,870.49,1.244]
[1757315043727,0.68629816,871.13,870.49,1.244]
[1757315043927,0.68629816,871.12,870.49,1.244]
[1757315044128,0.68629816,871.11,870.49,1.244]
[1757315044326,0.68629816,871.1,870.49,1.244]
[1757315044530,0.68629816,871.09,870.49,1.244]
[1757315044829,1.02800661,871.21,870.49,1.244]
[1757315045028,0.6863293,871.2,870.49,1.244]
[1757315045226,0.6863293,871.19,870.49,1.244]
[1757315045428,0.6863293,871.18,870.49,1.244]
[1757315045730,0.6863293,871.17,870.49,1.244]
[1757315046031,0.6863293,871.16,870.49,1.244]
[1757315046232,0.6863293,871.15,870.49,1.244]
[1757315046427,0.6863293,871.14,870.49,1.244]
[1757315046631,0.6863293,871.13,870.49,1.244]
[1757315046833,0.6863293,871.12,870.49,1.244]
[1757315047030,0.6863293,871.11,870.49,1.244]
[1757315047236,0.6863293,871.1,870.49,1.244]
[1757315047530,0.6863293,871.09,870.49,1.244]
[1757315047732,0.6863293,871.08,870.49,1.244]
[1757315047933,1.02800661,871.18,870.49,1.244]
[1757315048132,0.68634862,871.17,870.49,1.244]
[1757315048335,0.68634862,871.16,870.49,1.244]
[1757315048531,0.68634862,871.15,870.49,1.244]
[1757315048737,0.68634862,871.14,870.49,1.244]
[1757315048936,0.68634862,871.13,870.49,1.244]
[1757315049136,0.68634862,871.12,870.49,1.244]
[1757315049337,0.68634862,871.11,870.49,1.244]
[1757315049536,0.68634862,871.1,870.49,1.244]
[1757315049733,0.68634862,871.09,870.49,1.244]
[1757315049932,0.68634862,871.08,870.49,1.244]
[1757315050233,1.02800661,871.21,870.49,1.244]
[1757315050433,0.68634355,871.2,870.49,1.244]
[1757315050734,0.68634355,871.19,870.49,1.244]
[1757315050936,0.68634355,871.18,870.49,1.244]
[1757315051137,0.68634355,871.17,870.49,1.244]
[1757315051334,1.71435016,871.16,870.49,1.244]
[1757315051532,0.68634355,871.15,870.49,1.244]
[1757315051736,1.02800661,871.08,870.49,1.244]
[1757315058743,1.02800661,871.08,870.48,0.19945037]
[1757315062749,1.02800661,871.08,870.49,1.531]
[1757315063150,2.08155828,871.08,870.49,1.531]
[1757315063652,1.02800661,871.09,870.49,1.531]
[1757315063852,1.02800661,871.15,870.49,1.531]
[1757315065054,1.02800661,871.27,870.49,1.531]
[1757315065253,1.02800661,871.24,870.49,1.531]
[1757315065950,1.02800661,871.25,870.49,1.531]
[1757315068450,2.08155828,871.34,870.49,1.531]
[1757315069154,2.08155828,871.35,870.49,1.531]
[1757315069853,2.76722159,871.34,870.49,1.531]
[1757315070056,2.08155828,871.34,870.49,1.531]
[1757315078156,1.02800661,871.34,870.49,1.531]
[1757315081362,1.02800661,871.35,870.49,1.531]
[1757315084068,1.02800661,871.39,870.49,1.531]
[1757315087769,1.02800661,871.48,870.49,1.531]
[1757315090676,1.02800661,871.49,870.49,1.531]
[1757315092872,1.02800661,871.58,870.49,1.531]
[1757315096081,1.02800661,871.59,870.49,1.531]
[1757315102683,2.08155828,871.59,870.49,1.531]
[1757315102886,1.02800661,871.6,870.49,1.531]
[1757315103082,2.53681649,872.22,870.49,1.531]
[1757315103083,1.02800661,871.68,870.49,1.531]
[1757315103485,1.02800661,871.69,870.49,1.531]
[1757315104386,2.08155828,871.69,870.49,1.531]
[1757315104585,1.02800661,871.69,870.49,1.531]
[1757315104786,1.70988897,871.68,870.49,1.531]
[1757315104982,1.02800661,871.68,870.49,1.531]
[1757315105287,2.08155828,871.68,870.49,1.531]
[1757315105483,1.02800661,871.68,870.49,1.531]
[1757315105688,1.02800661,871.68,870.48,0.19945037]
[1757315106685,2.08155828,871.68,870.48,0.19945037]
[1757315106884,0.68174382,871.67,870.48,0.19945037]
[1757315107087,0.6817466,871.66,870.48,0.19945037]
[1757315107289,2.08155828,871.66,870.48,0.19945037]
[1757315108488,1.02800661,871.66,870.48,0.19945037]
[1757315108687,1.02800661,871.66,870.49,1.085]
[1757315108987,2.08155828,871.66,870.49,1.085]
[1757315110690,2.08155828,871.67,870.49,1.085]
[1757315111590,2.08155828,871.68,870.49,1.085]
[1757315112991,1.02800661,871.68,870.49,1.085]
[1757315114490,1.02800661,871.67,870.49,1.085]
[1757315114689,1.02800661,871.68,870.49,1.085]
[1757315119300,1.71010556,871.67,870.49,1.085]
[1757315119495,1.02800661,871.67,870.49,1.085]
[1757315120400,1.02800661,871.68,870.49,1.085]
[1757315123098,1.02800661,871.74,870.49,1.085]
[1757315123401,1.02800661,871.85,870.49,1.085]
[1757315123602,1.71024918,871.84,870.49,1.085]
[1757315123802,1.02800661,871.82,870.49,1.085]
[1757315131703,1.02800661,871.84,870.49,1.085]
[1757315133002,2.08155828,871.84,870.49,1.085]
[1757315135809,2.08155828,871.84,870.48,0.19945037]
[1757315136208,2.76384564,871.83,870.48,0.19945037]
[1757315136407,2.08155828,871.83,870.48,0.19945037]
[1757315138312,2.08155828,871.83,870.49,1.404]
[1757315139013,1.02800661,871.83,870.49,1.404]
[1757315140711,2.08155828,871.83,870.49,1.404]
[1757315141417,1.02800661,871.83,870.49,1.404]
[1757315143322,2.08155828,871.83,870.49,1.404]
[1757315143621,1.02800661,871.83,870.49,1.404]
[1757315144123,2.08155828,871.83,870.49,1.404]
[1757315145625,1.02800661,871.83,870.49,1.404]
[1757315146221,2.08155828,871.83,870.49,1.404]
[1757315147426,1.02800661,871.83,870.49,1.404]
[1757315147627,1.02800661,871.88,870.49,1.404]
[1757315149533,1.02800661,871.89,870.49,1.404]
[1757315154136,1.02800661,871.91,870.49,1.404]
[1757315154436,1.02800661,871.94,870.49,1.404]
[1757315155734,1.02800661,871.95,870.49,1.404]
[1757315163247,2.08155828,871.95,870.49,1.404]
[1757315163446,1.02800661,871.95,870.49,1.404]
[1757315163950,2.08155828,871.95,870.49,1.404]
[1757315176255,2.08155828,871.96,870.49,1.404]
[1757315176559,2.53681649,872.71,870.49,1.404]
[1757315176756,8.11781277,874.82,870.49,1.404]
[1757315176959,1.14346123,874.81,870.49,1.404]
[1757315177160,0.19913024,874.53,870.49,1.404]
[1757315177361,1.14346123,874.52,870.49,1.404]
[1757315177657,1.14346123,874.51,870.49,1.404]
[1757315177855,2.56554765,871.96,870.49,1.404]
[1757315178061,1.02621906,872.05,870.49,1.404]
[1757315187972,2.56554765,872.05,870.49,1.404]
[1757315189475,1.02621906,872.05,870.48,0.19945037]
[1757315191175,1.02621906,872.05,870.13,0.5]
[1757315191574,1.02621906,872.05,870.63,0.19928817]
[1757315192973,1.02621906,872.05,870.64,1.218]
[1757315193679,1.70677257,872.04,870.64,1.218]
[1757315193880,1.02621906,872.04,870.64,1.218]
[1757315194379,1.02621906,872.05,870.64,1.218]
[1757315199084,2.56554765,872.05,870.64,1.218]
[1757315211293,2.56554765,872.12,870.64,1.218]
[1757315212694,1.02621906,872.12,870.64,1.218]
[1757315220402,1.02621906,872.13,870.64,1.218]
[1757315222999,1.02621906,872.17,870.64,1.218]
[1757315223204,2.56554765,872.17,870.64,1.218]
[1757315225006,3.2472396,872.16,870.64,1.218]
[1757315225204,2.56554765,872.16,870.64,1.218]
[1757315229013,1.02621906,872.16,870.64,1.218]
[1757315236416,1.7080429,872.15,870.64,1.218]
[1757315236616,1.02621906,872.15,870.64,1.218]
[1757315239318,2.56554765,872.15,870.64,1.218]
[1757315240114,1.02621906,872.15,870.64,1.218]
[1757315242923,1.02621906,872.13,870.64,1.218]
[1757315244124,1.02621906,872.13,870.63,0.19928817]
[1757315246726,1.02621906,872.13,870.64,1.225]
[1757315249426,2.56554765,872.13,870.64,1.225]
[1757315253234,3.24852388,872.12,870.64,1.225]
[1757315253541,1.02621906,871.97,870.64,1.225]
[1757315254431,1.02621906,871.94,870.64,1.225]
[1757315260844,1.02621906,871.96,870.64,1.225]
[1757315261042,1.02621906,871.97,870.64,1.225]
[1757315261240,0.68578828,871.96,870.64,1.225]
[1757315261444,1.02621906,871.96,870.64,1.225]
[1757315269052,2.56554765,871.96,870.64,1.225]
[1757315269354,0.68542239,871.95,870.64,1.225]
[1757315269554,2.56554765,871.95,870.64,1.225]
[1757315272652,2.56554765,871.96,870.64,1.225]
[1757315272851,1.02621906,871.96,870.64,1.225]
[1757315276958,1.02621906,871.97,870.64,1.225]
[1757315280557,2.56554765,871.97,870.64,1.225]
[1757315280756,2.56554765,872.0,870.64,1.225]
[1757315281860,2.56554765,872.01,870.64,1.225]
[1757315282261,3.2508392,872.0,870.64,1.225]
[1757315282557,2.56554765,872.0,870.64,1.225]
[1757315286563,0.68539489,871.99,870.64,1.225]
[1757315286863,2.56554765,871.95,870.64,1.225]
[1757315287466,1.02621906,871.95,870.64,1.225]
[1757315297470,2.56554765,871.95,870.64,1.225]
[1757315297974,2.56554765,871.95,870.63,0.19928817]
[1757315300570,2.56554765,871.95,870.64,1.348]
[1757315316690,3.25302831,871.94,870.64,1.348]
[1757315316887,2.56554765,871.94,870.64,1.348]
[1757315329502,2.56554765,871.94,870.63,0.19928817]
[1757315332304,2.56554765,871.94,870.64,1.088]
[1757315348120,0.68760372,871.93,870.64,1.088]
[1757315348416,2.56554765,871.89,870.64,1.088]
[1757315352220,0.68742942,871.88,870.64,1.088]
[1757315352423,2.56554765,871.88,870.64,1.088]
[1757315354527,3.25382325,871.87,870.64,1.088]
[1757315354827,2.56554765,871.87,870.64,1.088]
[1757315355327,1.02621906,871.87,870.64,1.088]
[1757315359427,1.71432193,871.86,870.64,1.088]
[1757315359630,1.02621906,871.83,870.64,1.088]
[1757315362532,1.02621906,871.84,870.64,1.088]
[1757315366435,1.02621906,871.85,870.64,1.088]
[1757315374142,0.6878671,871.84,870.64,1.088]
[1757315374344,1.02621906,871.86,870.64,1.088]
[1757315376140,2.56554765,871.86,870.64,1.088]
[1757315377542,2.56554765,871.86,870.63,0.19928817]
[1757315383950,2.56554765,871.84,870.63,0.19928817]
[1757315384651,2.56554765,871.85,870.63,0.19928817]
[1757315385252,0.68793441,871.84,870.63,0.19928817]
[1757315385452,2.56554765,871.84,870.63,0.19928817]
[1757315391458,2.56554765,871.84,870.38,1.488]
[1757315391756,2.56554765,871.84,870.75,0.19931443]
[1757315393258,2.56554765,871.85,870.75,0.19931443]
[1757315394259,3.25381686,871.84,870.75,0.19931443]
[1757315394560,2.56554765,871.84,870.75,0.19931443]
[1757315394759,2.56554765,871.85,870.75,0.19931443]
[1757315395054,1.02621906,871.86,870.75,0.19931443]
[1757315396760,2.56554765,871.86,870.75,0.19931443]
[1757315396960,1.71455979,871.85,870.75,0.19931443]
[1757315397160,2.56554765,871.85,870.75,0.19931443]
[1757315400261,2.56554765,871.86,870.75,0.19931443]
[1757315402458,3.2540613,871.85,870.75,0.19931443]
[1757315402661,2.56554765,871.85,870.75,0.19931443]
[1757315404264,3.25410853,871.84,870.75,0.19931443]
[1757315404560,2.56554765,871.84,870.75,0.19931443]
[1757315426881,2.56554765,871.79,870.75,0.19931443]
[1757315430188,2.56554765,871.79,870.76,1.355]
[1757315434790,2.56554765,871.79,870.76,1.355]
[1757315449104,2.56554765,871.82,870.76,1.355]
[1757315449803,1.02621906,871.92,870.76,1.355]
[1757315450002,1.02621906,871.96,870.76,1.355]
[1757315450200,1.02621906,871.97,870.76,1.355]
[1757315451705,1.02621906,871.98,870.76,1.355]
[1757315452104,0.68883969,871.97,870.76,1.355]
[1757315452304,1.02621906,871.97,870.76,1.355]
[1757315454905,2.56554765,871.97,870.76,1.355]
[1757315456509,2.56554765,871.97,870.75,0.19931443]
[1757315459010,2.56554765,871.97,870.76,1.491]
[1757315459207,1.02621906,871.97,870.76,1.491]
[1757315459710,2.56554765,871.97,870.76,1.491]
[1757315465311,2.56554765,871.98,870.76,1.491]
[1757315469421,1.02621906,871.98,870.76,1.491]
[1757315469621,1.02621906,872.14,870.76,1.491]
[1757315487541,1.02621906,872.12,870.76,1.491]
[1757315489641,1.02621906,872.08,870.76,1.491]
[1757315492147,1.02621906,872.08,870.75,0.19931443]
[1757315495952,1.02621906,872.08,870.76,1.339]
[1757315499352,2.56554765,872.08,870.76,1.339]
[1757315503350,3.2521241,872.07,870.76,1.339]
[1757315503550,2.56554765,872.05,870.76,1.339]
[1757315510060,2.56554765,872.06,870.76,1.339]
[1757315511556,2.56554765,872.07,870.76,1.339]
[1757315512660,3.25309525,872.06,870.76,1.339]
[1757315512860,2.56554765,872.06,870.76,1.339]
[1757315538876,2.56554765,872.09,870.76,1.339]
[1757315540578,2.56554765,872.14,870.76,1.339]
[1757315545883,2.56554765,872.15,870.76,1.339]
[1757315547482,3.25390399,872.14,870.76,1.339]
[1757315547681,2.56554765,872.14,870.76,1.339]
[1757315552989,2.56554765,872.14,870.75,0.19931443]
[1757315555397,2.56554765,872.14,870.76,1.501]
[1757315566407,2.56554765,872.14,870.75,0.19931443]
[1757315569606,2.56554765,872.14,870.76,1.492]
[1757315577706,1.02621906,872.14,870.76,1.492]
[1757315583313,1.02621906,872.15,870.76,1.492]
[1757315583615,1.02621906,872.18,870.76,1.492]
[1757315587022,2.56554765,872.18,870.76,1.492]
[1757315587218,2.56554765,872.22,870.76,1.492]
[1757315587823,2.56554765,872.22,870.75,0.19931443]
[1757315589424,2.56554765,872.25,870.75,0.19931443]
[1757315591621,2.56554765,872.25,870.76,1.562]
[1757315592124,2.56554765,872.25,870.89,0.19924824]
[1757315592624,3.252936,872.24,870.89,0.19924824]
[1757315592924,2.56554765,872.25,870.89,0.19924824]
[1757315609538,3.25301591,872.24,870.89,0.19924824]
[1757315609738,2.56554765,872.24,870.89,0.19924824]
[1757315620051,2.56554765,872.25,870.89,0.19924824]
[1757315629253,1.02621906,872.25,870.89,0.19924824]
[1757315629457,2.56554765,873.06,870.89,0.19924824]
[1757315629458,1.02621906,872.43,870.89,0.19924824]
[1757315629756,1.02621906,872.44,870.89,0.19924824]
[1757315634452,1.02621906,872.45,870.89,0.19924824]
[1757315634752,2.56554765,873.47,870.89,0.19924824]
[1757315634753,1.71027667,872.44,870.89,0.19924824]
[1757315634957,1.02621906,872.44,870.89,0.19924824]
[1757315639459,2.56554765,872.44,870.89,0.19924824]
[1757315640756,2.56554765,872.45,870.89,0.19924824]
[1757315643860,1.02621906,872.45,870.89,0.19924824]
[1757315644162,2.56554765,872.45,870.89,0.19924824]
[1757315646564,2.56554765,872.45,870.9,1.711]
[1757315650166,1.02621906,872.45,870.9,1.711]
[1757315650461,1.02621906,872.48,870.9,1.711]
[1757315652167,2.56554765,872.48,870.9,1.711]
[1757315658669,1.02621906,872.52,870.9,1.711]
[1757315658873,0.68327292,872.51,870.9,1.711]
[1757315659175,0.68327292,872.5,870.9,1.711]
[1757315659373,0.68327292,872.49,870.9,1.711]
[1757315659574,0.68327292,872.48,870.9,1.711]
[1757315659873,0.68327292,872.47,870.9,1.711]
[1757315660068,0.68327292,872.46,870.9,1.711]
[1757315660271,2.56554765,874.07,870.9,1.711]
[1757315660272,0.68327292,872.45,870.9,1.711]
[1757315660470,0.68329205,872.44,870.9,1.711]
[1757315660674,0.68329205,872.43,870.9,1.711]
[1757315660872,0.68329205,872.42,870.9,1.711]
[1757315661169,1.02621906,872.4,870.9,1.711]
[1757315661369,1.02621906,872.35,870.9,1.711]
[1757315667569,1.02621906,872.36,870.9,1.711]
[1757315667769,1.02621906,872.37,870.9,1.711]
[1757315668174,1.02621906,872.38,870.9,1.711]
[1757315669272,1.02621906,872.4,870.9,1.711]
[1757315669474,1.02621906,872.44,870.9,1.711]
[1757315671174,2.56554765,872.44,870.9,1.711]
[1757315672276,1.02621906,872.45,870.9,1.711]
[1757315672477,1.02621906,872.51,870.9,1.711]
[1757315674578,1.70978855,872.5,870.9,1.711]
[1757315674774,1.02621906,872.5,870.9,1.711]
[1757315676279,0.68362937,872.49,870.9,1.711]
[1757315676482,1.02621906,872.49,870.9,1.711]
[1757315677583,1.02621906,872.5,870.9,1.711]
[1757315678483,2.56554765,872.5,870.9,1.711]
[1757315678684,2.56554765,872.51,870.9,1.711]
[1757315678878,2.56554765,872.54,870.9,1.711]
[1757315680780,0.68373548,872.53,870.9,1.711]
[1757315681087,2.56554765,872.53,870.9,1.711]
[1757315682085,2.56554765,872.54,870.9,1.711]
[1757315688489,2.56554765,872.54,870.89,0.19924824]
[1757315690891,2.56554765,872.54,870.9,1.21]
[1757315692189,3.24991701,872.53,870.9,1.21]
[1757315692389,2.56554765,872.53,870.9,1.21]
[1757315708498,1.02621906,872.71,870.9,1.21]
[1757315708702,0.68415943,872.7,870.9,1.21]
[1757315709004,0.68415943,872.69,870.9,1.21]
[1757315709202,0.68415943,872.68,870.9,1.21]
[1757315709399,0.68415943,872.67,870.9,1.21]
[1757315709699,0.68415943,872.66,870.9,1.21]
[1757315709898,0.68415943,872.65,870.9,1.21]
[1757315710100,0.68415943,872.64,870.9,1.21]
[1757315710305,0.68415943,872.63,870.9,1.21]
[1757315710503,0.68415943,872.62,870.9,1.21]
[1757315710802,1.02621906,872.73,870.9,1.21]
[1757315711002,0.6840685,872.72,870.9,1.21]
[1757315711200,0.6840685,872.71,870.9,1.21]
[1757315711403,0.6840685,872.7,870.9,1.21]
[1757315711604,1.53932859,873.06,870.9,1.21]
[1757315711605,1.71028756,872.69,870.9,1.21]
[1757315711802,0.6840685,872.68,870.9,1.21]
[1757315712101,0.6840685,872.67,870.9,1.21]
[1757315712307,0.6840685,872.66,870.9,1.21]
[1757315712501,0.6840685,872.65,870.9,1.21]
[1757315712807,0.6840685,872.64,870.9,1.21]
[1757315713006,0.6840685,872.63,870.9,1.21]
[1757315713301,0.6840685,872.62,870.9,1.21]
[1757315713602,0.6840685,872.61,870.9,1.21]
[1757315713806,1.02621906,872.68,870.9,1.21]
[1757315714107,0.68395483,872.67,870.9,1.21]
[1757315714305,0.68395483,872.66,870.9,1.21]
[1757315714506,0.68395483,872.65,870.9,1.21]
[1757315714806,0.68395483,872.64,870.9,1.21]
[1757315715003,0.68395483,872.63,870.9,1.21]
[1757315715202,0.68395483,872.62,870.9,1.21]
[1757315715404,1.02621906,872.69,870.9,1.21]
[1757315715607,0.68388553,872.68,870.9,1.21]
[1757315715806,0.68388553,872.67,870.9,1.21]
[1757315716102,1.71010459,872.66,870.9,1.21]
[1757315716305,0.68388553,872.65,870.9,1.21]
[1757315716503,0.68388553,872.64,870.9,1.21]